Cogmind - Beta 13 @@@ ROGUE MODE // 2024.05.06 @ 21:23:42 Player: SlyFyer Result: Destroyed by as-45513 with Assembled Heavy Rifle Performance ------------- Evolutions (0) 0 Regions Visited (2) 400 Robots Destroyed (17) 85 Value Destroyed (415) 415 Prototype IDs (0) 0 Alien Tech Used (0) 0 Bonus (0) 0 TOTAL SCORE: 900 Bonus ------- None Cogmind --------- Core Integrity 0/250 Matter 63/300 Energy 40/100 System Corruption 0% Temperature Cool (0) Movement Treading (160) Location -10/Mines Parts ------- > --- POWER (1) -------- (None) > --- PROPULSION (2) --- Improved Treads Improved Treads > --- UTILITY (2) ------ High-capacity Storage Unit Weight Redist. System > --- WEAPON (2) ------- Mini Grenade Launcher Mini Grenade Launcher > --- INVENTORY (20) --- Improved Treads Weight Redist. System Visual Processing Unit Improved Terrain Scanner Light EM Pulse Cannon Light EM Pulse Cannon Assault Rifle Heavy Assault Rifle Heavy Assault Rifle Heavy Assault Rifle Heavy Assault Rifle Shotgun Shotgun Shotgun Shotgun Mini Grenade Launcher Mini Grenade Launcher Mining Claw Peak State ------------ > --- POWER ------------ Light Nuclear Core > --- PROPULSION ------- Improved Treads Improved Treads > --- UTILITY ---------- High-capacity Storage Unit Weight Redist. System > --- WEAPON ----------- Shotgun Mini Grenade Launcher > --- INVENTORY -------- Improved Treads Improved Treads Weight Redist. System Visual Processing Unit Improved Terrain Scanner Light EM Pulse Cannon Light EM Pulse Cannon Assault Rifle Heavy Assault Rifle Heavy Assault Rifle Heavy Assault Rifle Heavy Assault Rifle Shotgun Shotgun Shotgun Mini Grenade Launcher Mini Grenade Launcher Mini Grenade Launcher Mining Claw [Rating: 17] Favorites ----------- Power Light Nuclear Core Engine Light Ion Engine Power Core Light Nuclear Core Propulsion Improved Treads Treads Improved Treads Wheel Wheel Utility High-capacity Storage Unit Device Weight Redist. System Storage High-capacity Storage Unit Weapon Assault Rifle Energy Gun Medium Laser Ballistic Gun Assault Rifle Launcher Mini Grenade Launcher Slashing Weapon Mining Claw Build | -11 -10 -10 ------- Run | Yrd Mat Min Slots Evolved . | . . . Power . | . . . Propulsion . | . . . Utility . | . . . Weapon . | . . . Parts Attached 21 | 7 11 3 Power 2 | 1 1 . Engine 1 | 1 . . Core 1 | . 1 . Reactor . | . . . Propulsion 5 | 2 2 1 Treads 3 | . 2 1 Leg . | . . . Wheel 2 | 2 . . Hover . | . . . Flight . | . . . Utility 4 | 2 2 . Device 2 | 1 1 . Storage 2 | 1 1 . Processor . | . . . Hackware . | . . . Protection . | . . . Artifact . | . . . Weapon 10 | 2 6 2 Energy Gun 2 | 2 . . Energy Cannon . | . . . Ballistic Gun 5 | . 5 . Ballistic Cannon . | . . . Launcher 2 | . . 2 Special Weapon . | . . . Impact Weapon . | . . . Slashing Weapon 1 | . 1 . Piercing Weapon . | . . . Special Melee Weapon . | . . . Unidentified Prototypes . | . . . Parts Lost 5 | . 3 2 Power 2 | . 1 1 Propulsion 1 | . . 1 Utility 1 | . 1 . Weapon 1 | . 1 . Highest Loss Streak 2 | . 1 2 To Critical Strikes 1 | . 1 . Average Slot Usage (%) 95 | . 95 93 Engine 1 | . 1 . Core 11 | . 11 7 Treads 26 | . 26 28 Wheel 1 | . 1 . Device 10 | . 10 14 Storage 14 | . 14 14 Ballistic Gun 24 | . 25 6 Slashing Weapon 2 | . 2 6 Naked Turns . | . . . Heaviest Build 50 | 13 50 50 Greatest Support 52 | 20 52 52 Greatest Overweight (x) 4 | 1 4 . Average Overweight (x) . | . . . Largest Inventory Capacity 20 | 8 20 20 Average Capacity 16 | 7 17 20 Most Carried 20 | 5 20 19 Average Carried 15 | 2 15 18 Final Capacity 20 | 8 20 20 Final Carried 19 | 4 19 18 Class Distribution -------------------- 100% | Mutant Dominant Class ---------------- Mutant | -10/Materials Mutant | -10/Mines Resources | -11 -10 -10 ----------- Run | Yrd Mat Min Matter Collected 505 | 212 293 . Remotely . | . . . Salvage Created 655 | 120 527 8 Parts 41 | 5 36 . Haulers Intercepted 2 | . 2 . Recyclers Shooed . | . . . Parts Field Recycled . | . . . Retrieved Matter . | . . . Parts Self-Destructed . | . . . Prevented . | . . . Kills | -11 -10 -10 ------- Run | Yrd Mat Min Combat Hostiles Destroyed 15 | . 12 3 Guns 12 | . 12 . AOE 3 | . . 3 Classes Destroyed 7 | 2 4 1 Tunneler 1 | 1 . . Hauler 2 | . 2 . Recycler 1 | 1 . . Watcher 1 | . 1 . Swarmer 3 | . 3 . Grunt 9 | . 9 . Assembled 3 | . . 3 Best Kill Streak 3 | 2 3 2 Combat Bots Only 3 | . 3 2 Max Kills in Single Turn 2 | 1 1 2 Gunslinging . | . . . Exploded 2 | . . 2 Melee . | . . . Uniques/NPCs Destroyed . | . . . Combat | -11 -10 -10 -------- Run | Yrd Mat Min Hostile Shots Fired 90 | . 69 21 Missed 18 | . 11 7 Damage Taken 921 | . 647 274 Core 257 | . 162 95 Absorbed by Shields . | . . . Core Remaining (%) 100 | 100 . . Volleys Fired 61 | 9 49 3 Largest 2 | 2 2 2 Hottest 100 | 100 43 60 Shots Fired 118 | 15 97 6 Gun 112 | 15 97 . Cannon . | . . . Launcher 6 | . . 6 Special . | . . . Kinetic 97 | . 97 . Thermal 15 | 15 . . Explosive 6 | . . 6 Electromagnetic . | . . . Robot Hit Streak 8 | 5 8 . Robot Miss Streak 6 | 3 6 2 Penetration Max . | . . . Secondary Targets 1 | . 1 . Max Gunslinging Chain 1 | . 1 . Shots Hit Robots 72 | 9 63 . Core Hits 36 | 3 28 5 Critical Kills . | . . . Critical Parts Destroyed . | . . . Critical Strikes . | . . . Melee Attacks 11 | . 11 . Impact . | . . . Slashing 11 | . 11 . Piercing . | . . . Sneak Attacks 2 | . 2 . Combat Hostiles . | . . . Follow-up Attacks . | . . . Damage Inflicted 1276 | 112 927 237 Guns 921 | 112 809 . Cannons . | . . . Explosions 235 | . . 235 Melee 118 | . 118 . Ramming 2 | . . 2 Kinetic 809 | . 809 . Thermal 112 | 112 . . Explosive 235 | . . 235 Electromagnetic . | . . . Impact . | . . . Slashing 118 | . 118 . Piercing . | . . . Highest Corruption . | . . . Average Corruption . | . . . Corruption Purged . | . . . Corruption Blocked . | . . . Overload Shots . | . . . Overflow Damage 14 | . 14 . Projectiles . | . . . Explosions . | . . . Melee 14 | . 14 . Knockbacks . | . . . Impact . | . . . Kinetic . | . . . Secondary . | . . . Self-Inflicted Damage 82 | . . 82 Shots 2 | . . 2 Rammed 1 | . . 1 Targets Rammed 1 | . . 1 Kicked . | . . . Crushed . | . . . Highest Temperature 234 | 234 29 . Average Temperature 57 | 109 6 . Received Heat Transfer 342 | . 342 . Effects 2 | 2 . . Interference 2 | 2 . . Siege Activations . | . . . Robots Corrupted . | . . . Combat Hostiles . | . . . Parts Fried . | . . . Impact Corruptions . | . . . Robots Melted . | . . . Combat Hostiles . | . . . Parts Melted 2 | 2 . . Heat Transferred 333 | 333 . . Parts Sabotaged . | . . . Parts Stolen . | . . . Parts Stripped . | . . . Power Chain Reactions . | . . . Alert | -11 -10 -10 ------- Run | Yrd Mat Min Peak Influence 171 | 10 171 55 Initial 15 | . 6 15 Average 39 | 2 42 20 Maximum Alert Level . | . . . Low Security (%) 100 | 100 100 100 Level 1 . | . . . Level 2 . | . . . Level 3 . | . . . Level 4 . | . . . Level 5 . | . . . High Security . | . . . Max Security . | . . . Squads Dispatched 2 | . 2 . Investigation 2 | . 2 . Extermination . | . . . Reinforcement . | . . . Assault . | . . . Garrison . | . . . Intercept . | . . . Searches Triggered . | . . . Construction Impeded . | . . . Haulers Reinforced . | . . . Active Scanning Responses . | . . . Cargo Convoy Interrupts . | . . . Stealth | -11 -10 -10 --------- Run | Yrd Mat Min Distress Signals . | . . . Communications Jammed . | . . . Distress Signals . | . . . Times Spotted 30 | . 22 8 Peak Tracking Total 6 | . 4 6 Tactical Retreats 1 | . . 1 Traps | -11 -10 -10 ------- Run | Yrd Mat Min Traps Triggered 2 | . 2 . Indirectly . | . . . Trap Hack Attempts . | . . . Triggered . | . . . Disarmed . | . . . Reprogrammed . | . . . Reused . | . . . Traps Extracted . | . . . Installed . | . . . Triggered . | . . . Machines | -11 -10 -10 ---------- Run | Yrd Mat Min Machines Disabled 2 | . 2 . Max in Single Turn 1 | . 1 . Machines Repaired . | . . . Machines Dismantled . | . . . Machines Sabotaged . | . . . Overloaded Fab Kills . | . . . Hacking | -11 -10 -10 --------- Run | Yrd Mat Min Machines Accessed 5 | . 5 . Terminals 5 | . 5 . Fabricators . | . . . Repair Stations . | . . . Recycling Units . | . . . Scanalyzers . | . . . Garrison Access . | . . . Total Hacks 11 | . 11 . Successful 5 | . 5 . Failed 6 | . 6 . Catastrophic 1 | . 1 . Database Lockouts . | . . . Manual 8 | . 8 . Terminals 11 | . 11 . Fabricators . | . . . Repair Stations . | . . . Recycling Units . | . . . Scanalyzers . | . . . Garrison Access . | . . . Terminal Hacks 3 | . 3 . Terminal Index 1 | . 1 . Patrol Status 1 | . 1 . Zone Layout 1 | . 1 . Fabricator Hacks . | . . . Repair Station Hacks . | . . . Recycling Unit Hacks . | . . . Scanalyzer . | . . . Garrison Access Hacks . | . . . Unauthorized Hacks 2 | . 2 . Terminals 2 | . 2 . Assimilate 1 | . 1 . Operators 1 | . 1 . Fabricators . | . . . Repair Stations . | . . . Recycling Units . | . . . Scanalyzers . | . . . Garrison Access . | . . . Data Cores Recovered . | . . . Used . | . . . Hacking Detections 3 | . 3 . Full Trace Events . | . . . Feedback Events . | . . . Feedback Blocked . | . . . Robot Schematics Acquired . | . . . Robots Built . | . . . Authchips . | . . . Time . | . . . Total Robot Build Rating . | . . . Part Schematics Acquired . | . . . Parts Built . | . . . Authchips . | . . . Time . | . . . Total Part Build Rating . | . . . Parts Repaired . | . . . Time . | . . . Parts Recycled . | . . . Recycled Matter . | . . . Retrieved Matter . | . . . Retrieved Components . | . . . Parts Scanalyzed . | . . . Part Schematics Acquired . | . . . Parts Damaged . | . . . Bothacking | -11 -10 -10 ------------ Run | Yrd Mat Min Used RIF Installer . | . . . Robots Hacked . | . . . Non-combat . | . . . Combat . | . . . Robot Hacks Applied . | . . . Relay Couplers Released . | . . . Fabnet Peak Effective % . | . . . Robots Rewired . | . . . Allies Hacked . | . . . Hacks Repelled . | . . . Allies | -11 -10 -10 -------- Run | Yrd Mat Min Total Allies 1 | . 1 . Largest Group 1 | . 1 1 Highest-Rated Group 10 | . 10 10 Highest-Rated Ally 10 | . 10 10 Total Orders 1 | . . 1 STAY 1 | . . 1 Ally Attacks . | . . . Total Damage . | . . . Kills . | . . . Allies Corrupted . | . . . Allies Melted . | . . . Intel | -11 -10 -10 ------- Run | Yrd Mat Min Robot Analysis Total . | . . . Derelict Logs Recovered . | . . . Drone Launches . | . . . Drone Recoveries . | . . . Exploration | -11 -10 -10 ------------- Run | Yrd Mat Min Turns Passed 1755 | 88 1574 93 Spaces Moved 858 | 68 741 49 Core 31 | 30 1 . Treads 716 | . 667 49 Legs . | . . . Wheels 111 | 38 73 . Hover . | . . . Flight . | . . . Fastest Speed 50 | 50 80 160 Average Speed 153 | 68 160 160 Slowest Speed 250 | 100 250 160 Overloaded Moves . | . . . Propulsion Burnouts . | . . . Robots Hopped . | . . . Cave-ins Triggered . | . . . Exploration Rate (%) 32 | 4 76 17 Regions Visited 2 Branch Regions 1 Pre-discovered Areas . | . . . Known Exits Taken . | . . . Unknown Exits Taken 2 | 1 1 . Scrap Searched . | . . . Spaces Dug 2 | . 2 . Terrain Destroyed 69 | . 2 67 Melee 2 | . 2 . Projectile . | . . . AOE 67 | . . 67 Terrain Rammed . | . . . Walls Destroyed . | . . . Machines Disabled . | . . . Actions | -11 -10 -10 --------- Run | Yrd Mat Min Total 1153 | 92 1005 56 Wait 163 | . 163 . Move 856 | 67 740 49 Hop . | . . . Pick Up 32 | 9 23 . Fast Attach 5 | 2 3 . Attach 11 | 5 5 1 Detach . | . . . Swap 5 | . 3 2 Drop 8 | . 8 . Fire 61 | 9 49 3 Melee 11 | . 11 . Ram . | . . . Kick . | . . . Crush 1 | . . 1 Escape Stasis . | . . . Rewire . | . . . Trap . | . . . Miscellaneous . | . . . Route ------- -11/Scrapyard -10/Materials (discovered 3 exits: [*Mat x2] / [*Min]) -10/Mines History --------- Turn | Location | Event 11 | -11/Scrapyard | Discovered new exit (range 16) 89 | -11/Scrapyard | Entered Materials 257 | -10/Materials | Discovered new exit (range 16) 305 | -10/Materials | Build established: Mutant 429 | -10/Materials | Core integrity fell below 50% 847 | -10/Materials | Discovered new exit (range 13) 1418 | -10/Materials | Discovered new exit (range 13) 1663 | -10/Materials | Entered Mines 1663 | -10/Mines | Accompanied by 1 ally 1680 | -10/Mines | Met a Derelict bent on vengeance 1703 | -10/Mines | Assembled infested the area 1725 | -10/Mines | Core integrity fell below 20% 1756 | -10/Mines | Destroyed by as-45513 with Assembled Heavy Rifle Last Messages --------------- 01564_ Destroyed Wheel. 01588_ K-01 Serf cleans the Fusion Modulator. LOCATION=UNKNOWN GOAL=ESCAPE 01664_ A derelict wanders into view. 01680_ JL-IDL(g): "UNAWARE KILLED MY BEST FRIEND! VENGEANCE!" 01682_ JL-IDL(g): "I WILL HAVE VENGEANCE!" 01693_ JL-IDL(g): "VENGEANCE!" 01703_ ALERT: Infestation in the mines, dispatching Demolisher response squad. 01709_ JL-IDL(g): "VENGEANCE!" 01713_ Lgt. Nuclear Core destroyed. 01716_ Imp. Treads destroyed. 01716_ K-01 Serf collects debris. 01718_ as-64502 destroyed. 01718_ as-04399 destroyed. 01722_ K-01 Serf collects debris. 01723_ JL-IDL(g): "VENGEANCE!" 01737_ Slammed into T-07 Excavator. 01753_ as-47785 destroyed. Map ----- +----------------------------------------------------+ | ?????????????????????????????????????????????????? | | ?????????????????????????????????????????????????? | | ?????????????????????????????????????????????????? | | ?????????????????????????????????????????????????? | | ?????????????????????????????????????????????????? | | ?????????????????????????????????????????????????? | | ?????????????????????????????????????????????????? | | ?????????????????????????????????????????????????? | | ?????????????????????????????????????????????????? | | ?????????????????????????????????????????????????? | | ?????????????????????????????????????????????????? | | ?????????????????????????????? ??????????????????? | | ?????????????????????????????? ??????????????????? | | ?????????????????????????????? ??????????????????? | | ?????????????????###?????????? ??????????????????? | | ?????????????????? #????????? ??????????????????? | | ?????????????????? #???????? ??????????????????? | | ??????????????????? ##?????? ??????????????????? | | ???????????????????? ###### ??????????????????? | | ????????????????????? ??????????????????? | | ????????????????????? ## ##?????????????????? | | ?????????????????????? ## #?????????????????? | | ??????????????????????? # #?????????????????? | | ??????????????????????## #?????????????????? | | ??????????????????????# #?????????????????? | | ??????????????????????# @ #?????????????????? | | ??????????????????????## #?????????????????# | | ???????????????????????## a #?????????#####?## | | ????????????????????????##### ##????????## ### | | ????????????????????????????# #?????????# | | ????????????????????????????# #????????## | | ????????????????????????????# #???###### | | ????????????????????????????# ##### | | ????????????????????????????# | | ????????????????????????????###### ## # | | ??????????????????????????????#### ###### # | | ???????????????????????# # ###????## # | | ???????????????????????# ##???????# # | | ??????????????????????# ##????????# # | | ??????????????????????# #????????## | | ???????????????????? ##???????## | | ????????????????????? % #????????# | | ????????????????????? # ?????????# | | ????????????????????? ######?????????## | | ????????????????????? #####????????????????##### | | ??????????????????????#??????????????????????????? | | ?????????????????????????????????????????????????? | | | | | | | +----------------------------------------------------+ Best States ------------- Heat Dissipation 25 Energy Generation 14 Energy Capacity 160 Matter Stores 252 Matter Capacity 300 Sight Range 16 Terrain Scan Density 10 Additional Mass Support 6 Evasion (%) 50 Recoil Reduction 2 Item Schematics ----------------- None Robot Schematics ------------------ None Fabricated ------------ Nothing Alien Tech Used ----------------- None Achievements -------------- None Challenges ------------ None Game ------ Seed MomentumTacticalGuard Manual? 0 Play Time 00:13:02 Cumulative 85.6 hours Start 2024.05.06 @ 21:11:19 End 2024.05.06 @ 21:23:42 Sessions 1 Manual Loads 0 Difficulty Rogue Special Mode None Game No. 45 Rogue 15 Adventurer 30 Explorer 0 Win Type - Total 3 Types 2/1/0/0/0/0/0/0/0 Lore% 50 Gallery% 66 Achievement% 60 Wizard Run 0 Options --------- Layout 0 ASCII 0 Keyboard 0 Movement Arrows Keybinds 0 Fullscreen 1 Font 18/SmallcapsGlow Map View 76x50 Zoom Use 0% Tactical HUD 1 Map Filters NONE Filters NONE Steam 1 RUN: 58aeaae8-6a77-4e53-9b74-e9c356a032b4